bitfinex-derivatives/quotes_SOLF0:USTF0_20241025
["timestamp","ask_amount","ask_price","bid_price","bid_amount"]
[1729873890609,9.1014,171.23,171.11,7.3764]
[1729873890824,36.38008617,171.24,171.11,7.3764]
[1729873891009,6.18,171.23,171.11,7.3764]
[1729873891211,2.9216,171.22,171.17,2.9222]
[1729873891520,2.9216,171.22,171.11,7.3764]
[1729873892114,2.9216,171.22,171.18,2.922]
[1729873892521,6.18,171.23,171.11,7.3764]
[1729873892522,36.38008617,171.2,171.11,1.1964]
[1729873892812,42.56008617,171.2,171.11,1.1964]
[1729873893018,6.18,171.2,171.11,1.1964]
[1729873893219,9.102,171.2,171.13,2.9229]
[1729873893410,6.18,171.2,171.11,1.1964]
[1729873893719,2.922,171.19,171.14,2.9227]
[1729873893917,2.922,171.19,171.11,1.1964]
[1729873894122,7.4046,171.21,171.11,1.1964]
[1729873894421,6.18,171.21,171.11,1.1964]
[1729873894623,6.18,171.23,171.11,1.1964]
[1729873894820,6.18,171.23,171.2,2.9218]
[1729873895011,6.18,171.23,171.12,6.18]
[1729873895314,2.9212,171.24,171.19,2.9218]
[1729873895520,36.38008617,171.26,171.14,36.38008617]
[1729873896507,42.56008617,171.29,171.17,36.38008617]
[1729873896722,42.56008617,171.29,171.18,8.6504]
[1729873897019,36.38008617,171.29,171.18,8.6504]
[1729873897222,36.38008617,171.29,171.19,1.2319]
[1729873897521,36.38008617,171.32,171.19,1.2319]
[1729873898311,36.38008617,171.34,171.2,36.38008617]
[1729873898515,39.29958617,171.34,171.3,2.9201]
[1729873899919,39.29958617,171.34,171.29,2.9202]
[1729873899920,2.9196,171.33,171.29,2.9202]
[1729873900113,36.38008617,171.34,171.23,6.18]
[1729873900309,7.4356,171.37,171.23,6.18]
[1729873900310,43.81568617,171.37,171.23,6.18]
[1729873900624,37.63568617,171.37,171.23,6.18]
[1729873901109,37.63568617,171.37,171.26,2.9206]
[1729873901110,2.9195,171.34,171.26,2.9206]
[1729873901424,37.63568617,171.37,171.23,6.18]
[1729873901614,2.9191,171.36,171.31,2.9198]
[1729873901817,37.63568617,171.37,171.31,2.9198]
[1729873902010,37.63568617,171.37,171.23,6.18]
[1729873902419,2.9193,171.35,171.31,2.9199]
[1729873902617,37.63568617,171.37,171.23,6.18]
[1729873902819,2.9195,171.34,171.3,2.92]
[1729873903322,37.63568617,171.37,171.23,6.18]
[1729873903521,36.38008617,171.34,171.29,2.9202]
[1729873904228,36.38008617,171.34,171.23,6.18]
[1729873904430,39.29958617,171.34,171.3,2.92]
[1729873904932,2.9186,171.39,171.35,2.9192]
[1729873905225,20.71981973,171.49,171.24,5.8423]
[1729873905226,36.38008617,171.45,171.32,36.38008617]
[1729873905421,44.13208617,171.48,171.35,36.38008617]
[1729873905731,36.38008617,171.51,171.38,36.38008617]
[1729873905929,1.232,171.52,171.39,10.7428]
[1729873906129,2.9168,171.5,171.39,10.7428]
[1729873906428,36.38008617,171.49,171.39,3.8028]
[1729873906617,36.38008617,171.49,171.3,5.8401]
[1729873906618,2.918,171.43,171.32,43.32008617]
[1729873906819,36.38008617,171.41,171.32,6.94]
[1729873907247,36.38008617,171.38,171.31,2.5314]
[1729873907925,39.29888617,171.38,171.31,2.5314]
[1729873908321,36.38008617,171.4,171.31,2.5314]
[1729873908528,8.172,171.42,171.31,2.5314]
[1729873908926,2.9187,171.39,171.34,2.9194]
[1729873909430,2.9187,171.39,171.27,6.94]
[1729873909431,36.38008617,171.37,171.27,6.94]
[1729873909635,2.9194,171.35,171.31,2.9199]
[1729873909818,36.38008617,171.37,171.27,8.2098]
[1729873910023,8.172,171.42,171.27,8.2098]
[1729873910024,36.38008617,171.4,171.27,8.2098]
[1729873910336,2.9189,171.38,171.33,2.9195]
[1729873910631,2.9189,171.38,171.27,8.2098]
[1729873911032,36.38008617,171.4,171.27,8.2098]
[1729873911331,2.9186,171.4,171.29,36.38008617]
[1729873911522,8.172,171.42,171.38,2.9187]
[1729873911523,1.232,171.42,171.38,2.9187]
[1729873911835,1.232,171.42,171.32,6.94]
[1729873912226,4.1502,171.42,171.33,1.1914]
[1729873912428,43.32008617,171.45,171.33,1.1914]
[1729873912725,43.32008617,171.45,171.4,2.9184]
[1729873913036,43.32008617,171.45,171.33,1.1914]
[1729873913224,1.2775,171.47,171.42,2.9181]
[1729873913427,1.2775,171.47,171.37,6.94]
[1729873913738,1.2775,171.47,171.38,1.2016]
[1729873913935,36.38008617,171.46,171.38,1.2016]
[1729873914134,2.9178,171.44,171.4,2.9183]
[1729873914330,36.38008617,171.46,171.38,1.2016]
[1729873914735,1.2775,171.47,171.38,1.2016]
[1729873915330,4.1949,171.47,171.44,2.9177]
[1729873915730,1.2775,171.47,171.44,2.9177]
[1729873916331,1.2775,171.47,171.38,1.2016]
[1729873916636,36.38008617,171.46,171.38,1.2016]
[1729873916940,1.2775,171.47,171.38,1.2016]
[1729873917631,2.9175,171.46,171.41,2.9181]
[1729873918529,2.9175,171.46,171.38,1.2016]
[1729873918730,4.1948,171.47,171.38,1.2016]
[1729873918934,6.94,171.49,171.38,1.2016]
[1729873919136,36.38008617,171.51,171.38,1.2016]
[1729873919336,39.29678617,171.51,171.47,2.9171]
[1729873919526,36.38008617,171.51,171.47,2.9171]
[1729873919949,4.1931,171.52,171.42,6.94]
[1729873920242,36.38008617,171.51,171.42,6.94]
[1729873920538,2.9176,171.45,171.41,2.9182]
[1729873921037,37.65668617,171.52,171.38,1.2016]
[1729873921239,37.65668617,171.52,171.39,36.38008617]
[1729873921439,36.38008617,171.58,171.44,36.38008617]
[1729873921629,5.8286,171.65,171.45,8.167]
[1729873921630,36.38008617,171.55,171.45,8.167]
[1729873921835,36.38008617,171.55,171.46,6.94]
[1729873922031,2.9165,171.52,171.48,2.9169]
[1729873922232,36.38008617,171.55,171.48,2.9169]
[1729873922532,36.38008617,171.55,171.46,6.94]
[1729873922844,36.38008617,171.58,171.46,6.94]
[1729873923141,36.38008617,171.58,171.47,1.3032]
[1729873923340,2.9156,171.57,171.53,2.9161]
[1729873923738,1.2353,171.59,171.47,37.68328617]
[1729873924045,1.2353,171.59,171.54,2.9159]
[1729873924046,2.9154,171.58,171.54,2.9159]
[1729873924245,2.9154,171.58,171.47,37.68328617]
[1729873924445,2.9154,171.58,171.48,6.94]
[1729873924446,2.9158,171.56,171.48,6.94]
[1729873924740,36.38008617,171.56,171.47,8.2432]
[1729873925641,36.38008617,171.56,171.47,1.3032]
[1729873925952,36.38008617,171.53,171.45,1.227]
[1729873926241,36.38008617,171.53,171.45,6.94]
[1729873926450,36.38008617,171.53,171.42,6.94]
[1729873926642,36.38008617,171.53,171.4,3.7912]
[1729873926991,36.38008617,171.55,171.41,43.32008617]
[1729873927143,2.9161,171.54,171.5,2.9166]
[1729873927340,36.38008617,171.78,171.49,6.94]
[1729873927341,1.2692,171.62,171.49,6.94]
[1729873927541,1.2692,171.62,171.5,44.59008617]
[1729873927743,4.184,171.62,171.57,2.9154]
[1729873928133,4.184,171.62,171.51,6.94]
[1729873928134,1.2692,171.62,171.51,6.94]
[1729873928446,6.94,171.66,171.53,36.38008617]
[1729873928447,43.32008617,171.66,171.53,36.38008617]
[1729873928943,1.2692,171.67,171.53,36.38008617]
[1729873929150,1.2692,171.67,171.62,2.9146]
[1729873929339,1.2692,171.67,171.57,6.94]
[1729873929844,2.9142,171.65,171.61,2.9147]
[1729873930046,1.2692,171.67,171.57,6.94]
[1729873930238,1.2692,171.67,171.57,8.1616]
[1729873930442,9.8535,171.7,171.64,2.9142]
[1729873930645,6.94,171.7,171.57,9.4082]
[1729873930838,2.9133,171.7,171.65,2.9141]
[1729873931049,1.2914,171.73,171.62,6.94]
[1729873931240,1.2914,171.73,171.63,8.1859]
[1729873931441,0.3132,171.8,171.64,36.38008617]
[1729873931442,36.38008617,171.76,171.64,36.38008617]
[1729873931642,36.38008617,171.76,171.65,1.2216]
[1729873932041,2.9123,171.76,171.7,2.9132]
[1729873932250,43.32008617,171.79,171.65,1.2216]
[1729873932545,43.32008617,171.79,171.67,36.38008617]
[1729873932745,36.38008617,171.82,171.67,36.38008617]
[1729873932945,1.2914,171.83,171.7,36.38008617]
[1729873933146,1.2914,171.83,171.72,36.38008617]
[1729873933359,6.94,171.86,171.73,7.3]
[1729873933558,2.9108,171.86,171.8,2.9116]
[1729873933773,36.38008617,171.88,171.74,1.3059]
[1729873933970,36.38008617,171.88,171.75,36.38008617]
[1729873934252,2.9103,171.88,171.83,2.911]
[1729873934657,1.266,171.89,171.8,7.3]
[1729873934849,2.9107,171.86,171.81,2.9113]
[1729873935054,36.38008617,171.87,171.75,1.2811]
[1729873935261,36.38008617,171.87,171.76,7.3]
[1729873935557,36.38008617,171.85,171.75,1.2811]
[1729873935760,36.38008617,171.85,171.75,8.5811]
[1729873936147,1.266,171.89,171.75,44.96118617]
[1729873936148,36.38008617,171.87,171.75,44.96118617]
[1729873936460,36.38008617,171.88,171.75,44.96118617]
[1729873937260,2.9106,171.86,171.75,44.96118617]
[1729873937474,1.266,171.89,171.75,44.96118617]
[1729873937755,36.38008617,171.93,171.81,36.38008617]
[1729873938062,7.3,171.95,171.84,36.38008617]
[1729873938359,36.38008617,171.96,171.88,2.9101]
[1729873938552,36.38008617,171.96,171.85,1.2347]
[1729873938951,1.2115,171.97,171.85,1.2347]
[1729873938952,36.38008617,171.9,171.85,1.2347]
[1729873939153,36.38008617,171.9,171.81,7.3]
[1729873939348,2.9103,171.88,171.83,2.911]
[1729873939557,2.9103,171.88,171.81,7.3]
[1729873939558,36.38008617,171.93,171.81,7.3]
[1729873939955,2.9098,171.91,171.85,2.9106]
[1729873940361,36.38008617,171.93,171.85,2.9106]
[1729873940691,36.38008617,171.93,171.81,7.3]
[1729873940961,36.38008617,171.93,171.81,43.68008617]
[1729873941559,2.9097,171.92,171.87,2.9104]
[1729873941755,1.2115,171.97,171.84,36.38008617]
[1729873941956,36.38008617,171.93,171.81,36.38008617]
[1729873942270,36.38008617,171.93,171.82,7.3]
[1729873942661,36.38008617,171.9,171.79,1.2347]
[1729873943152,2.9107,171.86,171.81,2.9113]
[1729873943352,43.68008617,171.93,171.79,1.2347]
[1729873943759,43.68008617,171.93,171.8,2.9116]
[1729873943949,36.38008617,171.89,171.79,1.2347]
[1729873944149,36.38008617,171.93,171.79,1.2347]
[1729873944367,2.9101,171.89,171.81,36.38008617]
[1729873944555,43.68008617,171.93,171.81,36.38008617]
[1729873944763,7.3,171.93,171.83,36.38008617]
[1729873944970,36.38008617,171.96,171.84,8.5049]
[1729873945461,2.9098,171.91,171.86,2.9105]
[1729873945856,2.9096,171.92,171.87,2.9104]
[1729873946061,36.38008617,171.96,171.84,8.5049]
[1729873946651,2.9097,171.92,171.87,2.9103]
[1729873947261,36.38008617,171.96,171.84,8.5049]
[1729873948065,36.38008617,171.96,171.84,1.2049]
[1729873948566,2.91,171.9,171.85,2.9108]
[1729873948764,2.91,171.9,171.84,1.2049]
[1729873950266,2.91,171.9,171.86,2.9105]
[1729873950664,36.38008617,171.96,171.86,2.9105]
[1729873950861,2.9097,171.92,171.87,2.9104]
[1729873951669,36.38008617,171.96,171.84,1.2049]
[1729873952268,2.9101,171.9,171.85,2.9106]
[1729873952473,36.38008617,171.96,171.85,2.9106]
[1729873952865,36.38008617,171.93,171.83,2.911]
[1729873953063,36.38008617,171.93,171.81,7.3]
[1729873953262,2.9109,171.85,171.79,1.2347]
[1729873953466,36.38008617,171.9,171.82,2.9112]
[1729873953669,36.38008617,171.9,171.79,8.5347]
[1729873953876,2.9107,171.86,171.79,8.5347]
[1729873954572,7.3,171.92,171.79,8.5347]
[1729873954573,2.9105,171.87,171.79,8.5347]
[1729873954765,7.3,171.92,171.8,36.38008617]
[1729873954968,36.38008617,171.95,171.83,36.38008617]
[1729873955167,2.9096,171.92,171.83,36.38008617]
[1729873955366,36.38008617,171.95,171.83,36.38008617]
[1729873955566,7.6099,171.96,171.8,36.38008617]
[1729873955567,2.9102,171.89,171.8,36.38008617]
[1729873955771,36.38008617,171.93,171.81,7.3]
[1729873955975,36.38008617,171.93,171.84,2.9109]
[1729873956271,2.9099,171.91,171.84,2.9109]
[1729873956572,36.38008617,171.93,171.84,2.9109]
[1729873956773,36.38008617,171.9,171.83,2.9111]
[1729873956967,2.9105,171.87,171.83,2.9111]
[1729873957464,36.38008617,171.9,171.79,1.2347]
[1729873957665,36.38008617,171.88,171.79,1.2347]
[1729873957865,1.3082,171.87,171.79,1.2347]
[1729873958068,1.3082,171.87,171.79,4.1464]
[1729873958278,1.3082,171.87,171.79,1.2347]
[1729873958673,2.9111,171.83,171.79,4.1464]
[1729873959170,1.3082,171.87,171.79,1.2347]
[1729873959976,2.9108,171.85,171.81,2.9114]
[1729873960562,2.911,171.84,171.79,1.2347]
[1729873960765,1.66,171.84,171.8,2.9116]
[1729873960964,1.66,171.84,171.79,1.2347]
[1729873961178,4.5711,171.84,171.81,2.9114]
[1729873961862,4.5711,171.84,171.79,1.2347]
[1729873961863,1.66,171.84,171.79,1.2347]
[1729873962281,1.66,171.84,171.83,2.9111]
[1729873962470,2.9098,171.91,171.81,36.38008617]
[1729873962769,2.9098,171.91,171.84,2.9108]
[1729873962979,2.9098,171.91,171.82,6.96]
[1729873963772,2.9097,171.92,171.82,6.96]
[1729873963977,1.1966,171.94,171.87,2.9103]
[1729873964178,36.38008617,171.92,171.81,36.38008617]
[1729873964384,2.9105,171.87,171.82,6.96]
[1729873964573,2.9105,171.87,171.79,1.2347]
[1729873964574,36.38008617,171.9,171.79,8.1947]
[1729873964769,36.38008617,171.87,171.79,8.1947]
[1729873965179,36.38008617,171.87,171.8,2.9115]
[1729873965579,2.9109,171.85,171.81,2.9114]
[1729873965989,36.38008617,171.87,171.81,2.9114]
[1729873966177,2.911,171.84,171.8,2.9115]
[1729873966679,36.38008617,171.87,171.79,1.2347]
[1729873966680,2.9107,171.86,171.82,2.9112]
[1729873967080,2.9107,171.86,171.79,1.2347]
[1729873968287,2.9107,171.86,171.82,2.9112]
[1729873968991,36.38008617,171.87,171.79,1.2347]
[1729873969180,36.38008617,171.87,171.78,6.96]
[1729873970285,2.9111,171.84,171.81,2.9114]
[1729873972278,36.38008617,171.87,171.78,6.96]
[1729873972486,43.34008617,171.9,171.78,6.96]
[1729873972889,43.34008617,171.9,171.83,2.911]
[1729873972890,2.9105,171.87,171.83,2.911]
[1729873973096,2.9105,171.87,171.78,6.96]
[1729873973394,43.34008617,171.9,171.78,6.96]
[1729873973581,2.9105,171.87,171.78,6.96]
[1729873974290,2.9105,171.87,171.82,2.9111]
[1729873974596,22.36121245,171.9,171.82,2.9111]
[1729873974785,2.9106,171.86,171.82,2.9111]
[1729873975388,2.9105,171.87,171.83,2.9109]
[1729873975685,6.96,171.91,171.78,6.96]
[1729873975894,6.96,171.91,171.79,22.36121245]
[1729873976191,6.96,171.91,171.85,2.9106]
[1729873977202,22.36121245,171.9,171.81,2.9114]
[1729873977403,22.36121245,171.9,171.78,6.96]
[1729873977894,2.9103,171.88,171.82,2.9112]
[1729873978097,22.36121245,171.9,171.82,2.9112]
[1729873978397,2.9107,171.86,171.82,2.9112]
[1729873978693,22.36121245,171.9,171.78,6.96]
[1729873978901,2.9104,171.88,171.84,2.9108]
[1729873979100,2.9104,171.88,171.78,6.96]
[1729873979398,2.9098,171.91,171.79,22.36121245]
[1729873979599,22.36121245,171.93,171.79,22.36121245]
[1729873979796,1.1966,171.94,171.82,22.36121245]
[1729873979991,1.1966,171.94,171.83,1.2256]
[1729873979992,2.9095,171.93,171.83,1.2256]
[1729873980192,1.1966,171.94,171.84,6.64]
[1729873980499,1.1966,171.94,171.87,2.9104]
[1729873980800,2.9097,171.92,171.84,6.64]
[1729873981098,1.1966,171.94,171.84,6.64]
[1729873981296,23.55781245,171.94,171.84,6.64]
[1729873981500,23.55781245,171.94,171.85,2.9107]
[1729873981795,2.91,171.9,171.84,6.64]
[1729873981998,23.55781245,171.94,171.84,6.64]
[1729873982187,23.55781245,171.94,171.87,2.9103]
[1729873982383,2.9099,171.91,171.87,2.9103]
[1729873982784,23.55781245,171.94,171.84,6.64]
[1729873982997,2.9095,171.93,171.89,2.9099]
[1729873983707,22.36121245,171.97,171.85,23.55001245]
[1729873984001,86.52181245,171.99,171.85,23.55001245]
[1729873984203,2.9092,171.95,171.91,2.9096]
[1729873984405,1.2006,171.99,171.89,6.64]
[1729873984589,22.36121245,172.05,171.9,22.36121245]
[1729873984793,2.9082,172.01,171.91,1.202]
[1729873985004,22.36121245,172.05,171.92,1.2066]
[1729873985294,25.21595847,172.05,171.92,1.2066]
[1729873985499,22.36121245,172.03,171.92,1.2066]
[1729873985996,2.9084,172.0,171.96,2.9089]
[1729873986902,2.9085,171.99,171.94,2.9091]
[1729873987097,22.36121245,172.02,171.94,2.9091]
[1729873987902,22.36121245,172.02,171.92,6.64]
[1729873988205,22.36121245,172.0,171.9,6.64]
[1729873988402,22.36121245,171.97,171.87,6.64]
[1729873988601,6.64,171.96,171.83,7.8722]
[1729873988812,22.36121245,171.92,171.81,7.9208]
[1729873989003,22.36121245,171.92,171.81,6.64]
[1729873989307,6.64,171.91,171.81,6.64]
[1729873989696,2.9102,171.89,171.84,2.9109]
[1729873990395,2.9096,171.92,171.82,22.36121245]
[1729873990601,6.64,171.96,171.82,23.60721245]
[1729873991105,22.36121245,171.97,171.85,22.36121245]
[1729873991298,22.36121245,171.97,171.86,9.1381]
[1729873991597,2.9097,171.92,171.87,2.9104]
[1729873991804,22.36121245,171.97,171.86,9.1381]
[1729873992201,2.9092,171.95,171.86,9.1381]
[1729873992409,22.36121245,171.97,171.86,9.1381]
[1729873992805,9.0907,171.99,171.86,9.1381]
[1729873993306,2.4507,171.99,171.88,22.36121245]
[1729873993511,1.2031,171.99,171.88,22.36121245]
[1729873993705,2.9083,172.0,171.95,2.9089]
[1729873993907,6.64,172.03,171.92,6.64]
[1729873994701,23.54341245,172.05,171.92,6.64]
[1729873994900,1.1822,172.05,171.93,22.36121245]
[1729873995302,2.9077,172.03,171.98,2.9084]
[1729873995499,2.58997746,172.09,171.96,22.36121245]
[1729873995705,0.95443482,172.08,171.97,6.64]
[1729873996208,22.36121245,172.07,171.97,6.64]
[1729873997601,2.9076,172.04,171.99,2.9083]
[1729873997806,22.36121245,172.07,171.99,2.9083]
[1729873998216,2.9077,172.04,172.0,2.9082]
[1729873998414,2.9077,172.04,171.97,6.64]
[1729873999007,22.36121245,172.1,171.97,6.64]
[1729873999209,22.36121245,172.13,171.99,22.36121245]
[1729873999412,6.64,172.14,172.02,22.36121245]
[1729873999616,1.2819,172.12,172.03,6.64]
[1729874000213,2.9076,172.04,171.99,31.90951245]
[1729874000419,22.36121245,172.11,171.99,29.00121245]
[1729874000712,22.36121245,172.11,172.01,2.9079]
[1729874000713,2.907,172.08,172.01,2.9079]
[1729874000914,2.907,172.08,171.99,29.00121245]
[1729874000915,22.36121245,172.11,171.99,29.00121245]
[1729874001520,1.2819,172.12,171.99,29.00121245]
[1729874001727,1.2819,172.12,172.01,22.36121245]
[1729874001929,1.2819,172.12,172.02,1.2379]
[1729874002434,2.9072,172.07,172.02,4.1457]
[1729874002639,1.2819,172.12,172.02,1.2379]
[1729874002827,2.9071,172.07,172.03,2.9077]
[1729874003224,1.2819,172.12,172.02,1.2379]
[1729874003532,1.2819,172.12,171.96,1.2088]
[1729874003533,2.908,172.02,171.98,2.9084]
[1729874003838,22.36121245,172.08,171.98,6.64]
[1729874005022,2.9079,172.03,171.99,2.9083]
[1729874005724,6.64,172.06,171.81,17.47]
[1729874005927,22.36121245,171.99,171.87,6.64]
[1729874007129,2.909,171.96,171.91,2.9096]
[1729874007333,1.1823,172.0,171.91,2.9096]
[1729874007721,1.1823,172.0,171.88,22.36121245]
[1729874007923,2.9095,171.93,171.88,2.9101]
[1729874008230,22.36121245,171.99,171.88,2.9101]
[1729874008426,22.36121245,171.99,171.86,7.8362]
[1729874008626,2.9095,171.93,171.86,7.8362]
[1729874008822,2.9095,171.93,171.79,62.82]
[1729874008823,29.00121245,171.96,171.79,62.82]
[1729874009134,22.36121245,171.9,171.77,6.64]
[1729874009451,22.36121245,171.78,171.66,32.85719457]
[1729874009740,17.44,171.86,171.66,10.49598212]
[1729874009937,1.3025,171.89,171.66,32.85719457]
[1729874009938,22.36121245,171.8,171.66,32.85719457]
[1729874010127,1.2108,171.82,171.69,22.36121245]
[1729874010128,2.9123,171.76,171.69,22.36121245]
[1729874010334,1.2108,171.82,171.69,22.36121245]
[1729874010335,6.52,171.79,171.69,22.36121245]
[1729874011336,1.2108,171.82,171.69,22.36121245]
[1729874011543,6.52,171.79,171.69,22.36121245]
[1729874011740,2.9121,171.77,171.71,2.9131]
[1729874012636,6.52,171.79,171.63,1.2447]
[1729874012934,1.2108,171.82,171.63,1.2447]
[1729874012935,2.90107157,171.87,171.65,36.36875835]
[1729874013141,2.9121,171.77,171.71,2.9131]
[1729874013337,36.36875835,171.82,171.68,36.36875835]
[1729874014337,36.36875835,171.82,171.69,1.2298]
[1729874014545,6.52,171.81,171.71,2.9131]
[1729874015351,6.52,171.81,171.69,1.2298]
[1729874015738,2.9122,171.77,171.71,2.913]
[1729874015943,6.52,171.81,171.71,2.913]
[1729874016537,2.912,171.78,171.72,2.9129]
[1729874017146,2.9116,171.81,171.74,2.9125]
[1729874017343,2.2259,171.86,171.74,36.36875835]
[1729874017642,8.7459,171.86,171.74,36.36875835]
[1729874018246,37.67125835,171.89,171.71,42.88875835]
[1729874018247,1.3025,171.89,171.79,36.36875835]
[1729874018436,1.3025,171.89,171.8,6.52]
[1729874018851,2.9103,171.88,171.82,2.9113]
[1729874019143,1.3025,171.89,171.8,6.52]
[1729874019338,1.3025,171.89,171.8,7.7903]
[1729874019946,2.9103,171.88,171.83,2.911]
[1729874020249,2.9103,171.88,171.8,7.7903]
[1729874020540,2.9105,171.87,171.82,2.9111]
[1729874020731,6.52,171.94,171.8,7.7903]
[1729874020930,6.52,171.94,171.8,9.0495]
[1729874021135,6.52,171.94,171.8,10.2821]
[1729874021440,6.52,171.94,171.82,36.36875835]
[1729874021648,2.4971,171.96,171.82,36.36875835]
[1729874021942,2.9097,171.92,171.86,2.9105]
[1729874022142,6.52,171.95,171.82,36.36875835]
[1729874022536,6.52,171.95,171.86,2.9104]
[1729874022537,2.9099,171.91,171.86,2.9104]
[1729874022731,2.9099,171.91,171.82,36.36875835]
[1729874023143,2.9099,171.91,171.85,2.9106]
[1729874024449,6.52,171.95,171.85,36.36875835]
[1729874025331,1.2316,171.96,171.85,42.88875835]
[1729874025532,2.9089,171.96,171.87,36.36875835]
[1729874026138,1.2451,172.0,171.87,36.36875835]
[1729874026539,1.2451,172.0,171.9,36.36875835]
[1729874026737,42.88875835,172.03,171.91,6.52]
[1729874026944,44.07255835,172.03,171.91,6.52]
[1729874027359,44.07255835,172.03,171.93,2.9093]
[1729874027853,44.07255835,172.03,171.94,4.65]
[1729874028051,36.36875835,172.0,171.94,4.65]
[1729874028247,7.7038,172.03,171.94,4.65]
[1729874028248,36.36875835,171.97,171.94,4.65]
[1729874028441,2.9091,171.95,171.94,4.65]
[1729874028649,7.7038,172.03,171.94,4.65]
[1729874028650,36.36875835,172.0,171.94,4.65]
[1729874029647,44.07255835,172.03,171.94,4.65]
[1729874029947,44.07255835,172.03,171.95,2.909]
[1729874030954,42.88875835,172.06,171.97,2.9087]
[1729874031857,2.9082,172.01,171.96,2.9089]
[1729874032261,42.88875835,172.06,171.96,2.9089]
[1729874032857,2.9086,171.99,171.94,7.5592]
[1729874033052,36.36875835,172.0,171.94,4.65]
[1729874033255,2.9091,171.95,171.94,4.65]
[1729874033761,1.2087,171.99,171.94,4.65]
[1729874034058,2.9088,171.97,171.94,4.65]
[1729874034359,1.2087,171.99,171.94,4.65]
[1729874034360,2.9089,171.96,171.94,4.65]
[1729874036961,2.9091,171.95,171.94,4.65]
[1729874037157,6.52,172.01,171.94,4.65]
[1729874037363,22.35792843,171.99,171.94,4.65]
[1729874037867,1.2874,172.0,171.83,3.7464]
[1729874037868,22.35792843,171.96,171.83,3.7464]
[1729874038161,2.9102,171.89,171.86,6.52]
[1729874038866,2.9102,171.89,171.86,9.4306]
[1729874039255,22.35792843,171.94,171.86,9.4306]
[1729874039256,2.91,171.9,171.86,9.4306]
[1729874040358,28.87792843,171.96,171.86,6.52]
[1729874040658,28.87792843,171.96,171.88,2.9101]
[1729874040865,28.87792843,171.96,171.86,6.52]
[1729874041069,2.9098,171.91,171.88,2.9102]
[1729874041471,2.9096,171.93,171.9,2.9099]
[1729874041654,1.2956,171.98,171.86,6.52]
[1729874042075,28.75792843,171.99,171.86,6.52]
[1729874042076,2.909,171.96,171.93,2.9093]
[1729874042370,2.909,171.96,171.88,22.35792843]
[1729874042560,2.909,171.96,171.92,2.9095]
[1729874042765,2.9088,171.97,171.88,22.35792843]
[1729874043265,345.89935471,172.08,171.9,22.35792843]
[1729874043266,28.75792843,172.04,171.9,22.35792843]
[1729874043463,28.75792843,172.04,171.91,8.8931]
[1729874043672,2.909,171.96,171.91,8.8931]
[1729874043966,22.35792843,172.02,171.91,8.8931]
[1729874044573,2.9089,171.97,171.93,2.9093]
[1729874044970,2.9089,171.97,171.92,1.2478]
[1729874044971,22.35792843,172.02,171.92,1.2478]
[1729874045163,2.9092,171.95,171.91,5.4027]
[1729874045467,2.9092,171.95,171.91,2.4931]
[1729874045664,22.35792843,172.02,171.91,2.4931]
[1729874045868,22.35792843,172.02,171.94,2.9092]
[1729874046072,22.35792843,172.02,171.91,2.4931]
[1729874046279,2.9085,171.99,171.95,2.9089]
[1729874046478,22.35792843,172.02,171.91,2.4931]
[1729874046975,22.35792843,171.99,171.91,1.2376]
[1729874047178,22.35792843,171.99,171.89,6.4]
[1729874047179,28.75792843,171.99,171.89,6.4]
[1729874047378,2.9095,171.93,171.9,2.9099]
[1729874047564,22.35792843,171.96,171.86,1.2084]
[1729874047767,22.35792843,171.96,171.86,7.6084]
[1729874048060,1.0975,171.98,171.91,2.9097]
[1729874048263,1.0975,171.98,171.86,7.6084]